fUST/lending_fUST_20250630
["ID","MTS","AMOUNT","RATE_DAILY","PERIOD"]
[368677750,1751292645795,-684.32,0.00018786,2]
[368677751,1751292645804,-460.0,0.00018786,2]
[368677752,1751292645813,-460.0,0.00018786,2]
[368677753,1751292645822,-467.20804502,0.00018786,2]
[368677754,1751292645831,-460.0,0.00018786,2]
[368677755,1751292645840,-460.0,0.00018786,2]
[368677756,1751292645850,-610.8,0.00018786,2]
[368677757,1751292645859,-512.53,0.00018786,2]
[368677758,1751292645868,-460.0,0.00018786,2]
[368677759,1751292645877,-460.0,0.00018786,2]
[368677760,1751292645887,-460.0,0.00018786,2]
[368677761,1751292645897,-1233.39,0.00018786,2]
[368677762,1751292645906,-460.0,0.00018786,2]
[368677763,1751292645915,-460.0,0.00018786,2]
[368677764,1751292645925,-478.91,0.00018786,2]
[368677766,1751292645934,-274.5844273,0.00018786,2]
[368677767,1751292645943,-460.0,0.00018786,2]
[368677768,1751292645952,-460.0,0.00018786,2]
[368677769,1751292645961,-4803.33,0.00018786,2]
[368677770,1751292645970,-460.0,0.00018786,2]
[368677771,1751292645979,-460.0,0.00018786,2]
[368677773,1751292645989,-460.0,0.00018786,2]
[368677774,1751292645998,-460.0,0.00018787,2]
[368677775,1751292646007,-460.0,0.00018787,2]
[368677776,1751292646018,-460.0,0.00018787,2]
[368677777,1751292646027,-1099.82,0.00018787,2]
[368677778,1751292646037,-460.0,0.00018787,2]
[368677779,1751292646046,-460.0,0.00018787,2]
[368677780,1751292646057,-460.0,0.00018787,2]
[368677781,1751292646066,-624.33,0.00018787,2]
[368677782,1751292646075,-460.0,0.00018787,2]
[368677783,1751292646085,-460.0,0.00018787,2]
[368677784,1751292646096,-470.3,0.00018787,2]
[368677785,1751292646105,-4816.37,0.00018787,2]
[368677786,1751292646115,-1260.89,0.00018787,2]
[368677787,1751292646124,-485.39,0.00018787,2]
[368677788,1751292646133,-460.0,0.00018787,2]
[368677789,1751292646143,-797.0,0.0001879,2]
[368677790,1751292646154,-265.0,0.00018794,2]
[368677791,1751292646164,-1165.95888231,0.000188,2]
[368677792,1751292646173,-242.24216907,0.00018803,2]
[368677793,1751292646183,-797.0,0.00018818,2]
[368677794,1751292646192,-797.0,0.00018845,2]
[368677795,1751292646201,-797.0,0.00018872,2]
[368677797,1751292646211,-460.0,0.00018886,2]
[368677798,1751292646220,-460.0,0.00018886,2]
[368677799,1751292646230,-460.0,0.00018886,2]
[368677800,1751292646239,-460.0,0.00018886,2]
[368677801,1751292646249,-460.0,0.00018886,2]
[368677802,1751292646259,-460.0,0.00018886,2]
[368677803,1751292646268,-460.0,0.00018886,2]
[368677804,1751292646277,-460.0,0.00018886,2]
[368677805,1751292646287,-460.0,0.00018886,2]
[368677806,1751292646296,-460.0,0.00018886,2]
[368677807,1751292646306,-566.66,0.00018886,2]
[368677808,1751292646316,-460.0,0.00018886,2]
[368677809,1751292646325,-508.48,0.00018886,2]
[368677810,1751292646335,-487.0136555,0.00018886,2]
[368677811,1751292646345,-460.0,0.00018886,2]
[368677812,1751292646355,-460.0,0.00018886,2]
[368677813,1751292646364,-460.0,0.00018886,2]
[368677815,1751292646374,-574.1,0.00018886,2]
[368677816,1751292646384,-460.0,0.00018886,2]
[368677818,1751292646393,-583.49,0.00018886,2]
[368677819,1751292646402,-460.0,0.00018886,2]
[368677820,1751292646411,-460.0,0.00018886,2]
[368677821,1751292646420,-460.0,0.00018886,2]
[368677822,1751292646432,-460.0,0.00018886,2]
[368677823,1751292646442,-774.04,0.00018886,2]
[368677824,1751292646451,-527.72,0.00018886,2]
[368677825,1751292646460,-460.0,0.00018886,2]
[368677826,1751292646470,-460.0,0.00018886,2]
[368677827,1751292646480,-527.38,0.00018886,2]
[368677828,1751292646489,-460.0,0.00018886,2]
[368677829,1751292646498,-585.13603678,0.00018886,2]
[368677830,1751292646508,-460.0,0.00018886,2]
[368677831,1751292646519,-460.0,0.00018886,2]
[368677832,1751292646527,-460.0,0.00018886,2]
[368677833,1751292646538,-198.45258199,0.00018886,2]
[368677834,1751292646547,-4201.15,0.00018899,2]
[368677835,1751292646556,-797.0,0.000189,2]
[368677836,1751292646567,-216.24810976,0.000189,2]
[368677837,1751292646576,-151.0,0.000189,2]
[368677838,1751292646586,-151.0,0.000189,2]
[368677839,1751292646596,-151.0,0.000189,2]
[368677840,1751292646605,-202.41357499,0.000189,2]
[368677841,1751292646615,-500.0,0.000189,2]
[368677842,1751292646626,-500.0,0.000189,2]
[368677843,1751292646635,-690.642,0.000189,2]
[368677844,1751292646645,-500.0,0.000189,2]
[368677845,1751292646655,-500.0,0.000189,2]
[368677846,1751292646665,-500.0,0.000189,2]
[368677847,1751292646674,-151.0,0.000189,2]
[368677848,1751292646683,-500.0,0.000189,2]
[368677849,1751292646692,-500.0,0.000189,2]
[368677850,1751292646702,-151.0,0.000189,2]
[368677851,1751292646711,-500.0,0.000189,2]
[368677852,1751292646720,-500.0,0.000189,2]
[368677853,1751292646729,-500.0,0.000189,2]
[368677854,1751292646738,-500.0,0.000189,2]
[368677855,1751292646747,-151.0,0.000189,2]
[368677856,1751292646757,-5000.0,0.000189,2]
[368677857,1751292646767,-500.0,0.000189,2]
[368677858,1751292646777,-500.0,0.000189,2]
[368677859,1751292646786,-151.0,0.000189,2]
[368677860,1751292646795,-151.0,0.000189,2]
[368677861,1751292646804,-500.0,0.000189,2]
[368677862,1751292646813,-500.0,0.000189,2]
[368677863,1751292646822,-151.0,0.000189,2]
[368677864,1751292646831,-151.0,0.000189,2]
[368677865,1751292646842,-151.0,0.000189,2]
[368677866,1751292646851,-500.0,0.000189,2]
[368677867,1751292646860,-500.0,0.000189,2]
[368677868,1751292646869,-151.0,0.000189,2]
[368677869,1751292646879,-151.0,0.000189,2]
[368677870,1751292646888,-151.0,0.000189,2]
[368677871,1751292646898,-500.0,0.000189,2]
[368677872,1751292646907,-500.0,0.000189,2]
[368677873,1751292646919,-151.0,0.000189,2]
[368677874,1751292646928,-151.0,0.000189,2]
[368677875,1751292646937,-500.0,0.000189,2]
[368677876,1751292646947,-151.0,0.000189,2]
[368677877,1751292646956,-500.0,0.000189,2]
[368677878,1751292646965,-151.0,0.000189,2]
[368677879,1751292646975,-151.0,0.000189,2]
[368677880,1751292646985,-151.0,0.000189,2]
[368677881,1751292646995,-169.74990888,0.000189,2]
[368677882,1751292647004,-151.0,0.000189,2]
[368677883,1751292647014,-500.0,0.000189,2]
[368677884,1751292647024,-500.0,0.000189,2]
[368677885,1751292647034,-151.0,0.000189,2]
[368677886,1751292647045,-508.72523786,0.000189,2]
[368677887,1751292647054,-500.0,0.000189,2]
[368677888,1751292647063,-151.0,0.000189,2]
[368677889,1751292647072,-500.0,0.000189,2]
[368677890,1751292647181,-151.0,0.000189,2]
[368677891,1751292647190,-3524.3266035,0.000189,2]
[368677892,1751292647200,-500.0,0.000189,2]
[368677893,1751292647209,-151.0,0.000189,2]
[368677894,1751292647219,-151.0,0.000189,2]
[368677895,1751292647229,-500.0,0.000189,2]
[368677896,1751292647238,-500.0,0.000189,2]
[368677897,1751292647248,-151.0,0.000189,2]
[368677898,1751292647257,-151.0,0.000189,2]
[368677899,1751292647266,-500.0,0.000189,2]
[368677900,1751292647276,-151.0,0.000189,2]
[368677901,1751292647286,-151.0,0.000189,2]
[368677902,1751292647295,-151.0,0.000189,2]
[368677903,1751292647304,-151.0,0.000189,2]
[368677904,1751292647314,-151.0,0.000189,2]
[368677905,1751292647323,-245.88998335,0.000189,2]
[368677906,1751292647332,-25000.0,0.000189,2]
[368677907,1751292647343,-500.0,0.000189,2]
[368677908,1751292647353,-151.0,0.000189,2]
[368677909,1751292647362,-500.0,0.000189,2]
[368677910,1751292647371,-219.65880211,0.000189,2]
[368677911,1751292647380,-500.0,0.000189,2]
[368677912,1751292647390,-500.0,0.000189,2]
[368677913,1751292647399,-500.0,0.000189,2]
[368677914,1751292647408,-207.4,0.000189,2]
[368677915,1751292647417,-500.0,0.000189,2]
[368677916,1751292647428,-500.0,0.000189,2]
[368677917,1751292647439,-2724.23282143,0.000189,2]
[368677918,1751292647448,-500.0,0.000189,2]
[368677919,1751292647457,-500.0,0.000189,2]
[368677920,1751292647466,-500.0,0.000189,2]
[368677921,1751292647477,-500.0,0.000189,2]
[368677922,1751292647487,-500.0,0.000189,2]
[368677923,1751292647496,-500.0,0.000189,2]
[368677924,1751292647507,-500.0,0.000189,2]
[368677925,1751292647517,-500.0,0.000189,2]
[368677926,1751292647527,-500.0,0.000189,2]
[368677927,1751292647537,-500.0,0.000189,2]
[368677928,1751292647547,-500.0,0.000189,2]
[368677929,1751292647556,-500.0,0.000189,2]
[368677930,1751292647565,-500.0,0.000189,2]
[368677931,1751292647574,-500.0,0.000189,2]
[368677932,1751292647584,-500.0,0.000189,2]
[368677933,1751292647593,-500.0,0.000189,2]
[368677934,1751292647603,-500.0,0.000189,2]
[368677935,1751292647611,-500.0,0.000189,2]
[368677936,1751292647620,-193.91835657,0.000189,2]
[368677937,1751292647629,-500.0,0.000189,2]
[368677938,1751292647639,-500.0,0.000189,2]
[368677939,1751292647648,-3929.46754672,0.000189,2]
[368677940,1751292647657,-797.0,0.00018927,2]
[368677941,1751292647667,-500.0,0.00018939,2]
[368677942,1751292647676,-518.96,0.00018939,2]
[368677943,1751292647686,-4201.15,0.0001894,2]
[368677944,1751292647696,-4201.15,0.0001894,2]
[368677945,1751292647706,-4201.15,0.0001894,2]
[368677946,1751292647715,-4201.15,0.0001894,2]
[368677947,1751292647724,-4201.15,0.0001894,2]
[368677948,1751292647733,-4201.15,0.0001894,2]
[368677949,1751292647743,-4201.15,0.0001894,2]
[368677950,1751292647752,-4201.15,0.0001894,2]
[368677951,1751292647761,-4201.15,0.0001894,2]
[368677952,1751292647771,-4201.15,0.0001894,2]
[368677953,1751292647780,-4201.15,0.0001894,2]
[368677954,1751292647789,-4201.15,0.0001894,2]
[368677955,1751292647798,-4201.15,0.0001894,2]
[368677956,1751292647807,-4201.15,0.0001894,2]
[368677957,1751292647817,-4201.28078228,0.0001894,2]
[368677958,1751292647827,-797.0,0.00018955,2]
[368677959,1751292647837,-716.195754,0.00018955,2]
[368677960,1751292647847,-901.59875828,0.0001898,2]
[368677961,1751292647856,-797.0,0.00018982,2]
[368677962,1751292647866,-460.0,0.00018986,2]
[368677963,1751292647875,-460.0,0.00018986,2]
[368677964,1751292647884,-460.0,0.00018986,2]
[368677965,1751292647894,-460.0,0.00018986,2]
[368677966,1751292647904,-460.0,0.00018986,2]
[368677967,1751292647914,-1125.71,0.00018986,2]
[368677968,1751292647924,-460.0,0.00018986,2]
[368677969,1751292647933,-263.28257756,0.00018986,2]
[368677970,1751292647943,-460.0,0.00018986,2]
[368677971,1751292647953,-819.49,0.00018986,2]
[368677972,1751292647964,-711.35,0.00018986,2]
[368677973,1751292647974,-460.0,0.00018986,2]
[368677974,1751292647984,-1987.96,0.00018986,2]
[368677975,1751292647995,-460.0,0.00018986,2]
[368677976,1751292648004,-460.0,0.00018986,2]
[368677977,1751292648013,-461.48526552,0.00018987,2]
[368677978,1751292648023,-460.0,0.00018987,2]
[368677979,1751292648032,-829.15,0.00018987,2]
[368677980,1751292648041,-460.0,0.00018987,2]
[368677981,1751292648050,-460.0,0.00018987,2]
[368677982,1751292648060,-507.65,0.00018987,2]
[368677983,1751292648069,-460.0,0.00018987,2]
[368677984,1751292648079,-460.0,0.00018987,2]
[368677985,1751292648088,-460.0,0.00018987,2]
[368677986,1751292648099,-460.0,0.00018987,2]
[368677987,1751292648108,-460.0,0.00018987,2]
[368677988,1751292648117,-460.0,0.00018987,2]
[368677989,1751292648126,-460.0,0.00018987,2]
[368677990,1751292648136,-460.0,0.00018987,2]
[368677991,1751292648146,-460.0,0.00018987,2]
[368677992,1751292648156,-460.0,0.00018987,2]
[368677993,1751292648166,-265.0,0.00018991,2]
[368677994,1751292648175,-797.0,0.00019009,2]
[368677995,1751292648185,-742.6949969,0.0001901,2]
[368677996,1751292648194,-265.30668565,0.00019031,2]
[368677997,1751292648204,-580.0,0.00019031,2]
[368677998,1751292648213,-500.0,0.00019031,2]
[368677999,1751292648223,-460.0,0.00019031,2]
[368678000,1751292648232,-602.95636315,0.00019031,2]
[368678001,1751292648241,-470.9743798,0.00019031,2]
[368678002,1751292648251,-460.0,0.00019031,2]
[368678003,1751292648260,-460.0,0.00019031,2]
[368678004,1751292648269,-338.0502782,0.00019031,2]
[368678005,1751292648279,-518.96,0.00019031,2]
[368678006,1751292648288,-607.38072682,0.00019031,2]
[368678007,1751292648298,-460.0,0.00019032,2]
[368678008,1751292648307,-500.0,0.00019032,2]
[368678009,1751292648316,-518.96,0.00019032,2]
[368678010,1751292648326,-296.96506079,0.00019036,2]
[368678011,1751292648335,-500.0,0.00019037,2]
[368678012,1751292648347,-797.0,0.00019037,2]
[368678013,1751292648357,-500.0,0.00019037,2]
[368678014,1751292648366,-500.0,0.00019037,2]
[368678015,1751292648376,-362.63861005,0.00019045,2]
[368678016,1751292648386,-159.40005004,0.00019045,2]
[368678017,1751292648395,-500.0,0.00019045,2]
[368678018,1751292648404,-500.0,0.00019045,2]
[368678019,1751292648414,-500.0,0.00019045,2]
[368678020,1751292648423,-500.0,0.00019045,2]
[368678021,1751292648436,-501.08720691,0.00019045,2]
[368678022,1751292648446,-500.01768372,0.00019045,2]
[368678023,1751292648455,-500.0,0.00019047,2]
[368678024,1751292648465,-500.0,0.00019048,2]
[368678025,1751292648474,-500.0,0.00019048,2]
[368678026,1751292648484,-491.29844678,0.00019048,2]
[368678027,1751292648494,-500.97448561,0.00019048,2]
[368678028,1751292648503,-500.0,0.0001905,2]
[368678029,1751292648513,-518.96,0.0001905,2]
[368678030,1751292648523,-500.0,0.00019051,2]
[368678031,1751292648532,-507.38068152,0.00019051,2]
[368678032,1751292648541,-500.0,0.00019051,2]
[368678033,1751292648551,-500.0,0.00019058,2]
[368678034,1751292648560,-460.0,0.00019058,2]
[368678035,1751292648569,-460.0,0.00019058,2]
[368678036,1751292648578,-460.0,0.00019059,2]
[368678037,1751292648588,-460.0,0.00019059,2]
[368678038,1751292648599,-460.0,0.00019059,2]
[368678039,1751292648609,-460.0,0.00019059,2]
[368678040,1751292648618,-460.0,0.00019059,2]
[368678041,1751292648628,-3148.61,0.00019059,2]
[368678042,1751292648637,-460.0,0.00019059,2]
[368678043,1751292648647,-460.0,0.00019059,2]
[368678044,1751292648656,-529.28,0.00019059,2]
[368678045,1751292648666,-833.89,0.00019059,2]
[368678046,1751292648676,-460.0,0.00019059,2]
[368678047,1751292648686,-3121.8,0.00019059,2]
[368678048,1751292648695,-460.0,0.00019059,2]
[368678049,1751292648704,-3574.5,0.00019059,2]
[368678050,1751292648714,-735.98,0.00019059,2]
[368678051,1751292648723,-489.67,0.00019059,2]
[368678052,1751292648733,-499.26,0.00019059,2]
[368678053,1751292648743,-460.0,0.00019059,2]
[368678054,1751292648752,-460.0,0.00019059,2]
[368678055,1751292648762,-3308.14,0.00019059,2]
[368678056,1751292648772,-460.0,0.00019059,2]
[368678057,1751292648781,-460.0,0.00019059,2]
[368678058,1751292648791,-4178.41,0.00019059,2]
[368678059,1751292648800,-460.0,0.00019059,2]
[368678060,1751292648809,-460.0,0.00019059,2]
[368678061,1751292648819,-536.59,0.00019059,2]
[368678062,1751292648829,-507.75,0.00019059,2]
[368678063,1751292648838,-2247.91,0.00019059,2]
[368678064,1751292648850,-460.0,0.00019059,2]
[368678065,1751292648859,-1889.22,0.00019059,2]
[368678066,1751292648869,-460.0,0.00019059,2]
[368678067,1751292648878,-460.0,0.00019059,2]
[368678068,1751292648887,-460.0,0.00019059,2]
[368678069,1751292648897,-278.77259246,0.0001906,2]
[368678070,1751292648906,-460.0,0.0001906,2]
[368678071,1751292648915,-460.0,0.0001906,2]
[368678072,1751292648925,-217.29,0.0001906,2]
[368678073,1751292648934,-460.0,0.0001906,2]
[368678074,1751292648944,-460.0,0.0001906,2]
[368678075,1751292648953,-2144.16,0.0001906,2]
[368678076,1751292648963,-560.83,0.0001906,2]
[368678077,1751292648972,-460.0,0.0001906,2]
[368678078,1751292648982,-494.44,0.0001906,2]
[368678079,1751292648992,-460.0,0.0001906,2]
[368678080,1751292649002,-460.0,0.0001906,2]
[368678081,1751292649011,-508.1,0.0001906,2]
[368678082,1751292649020,-460.0,0.0001906,2]
[368678083,1751292649029,-460.0,0.0001906,2]
[368678084,1751292649039,-684.32,0.0001906,2]
[368678085,1751292649048,-460.0,0.0001906,2]
[368678086,1751292649057,-460.0,0.0001906,2]
[368678087,1751292649067,-460.0,0.0001906,2]
[368678088,1751292649076,-500.0,0.0001906,2]
[368678089,1751292649086,-610.8,0.0001906,2]
[368678090,1751292649097,-512.53,0.0001906,2]
[368678091,1751292649107,-460.0,0.0001906,2]
[368678092,1751292649116,-460.0,0.0001906,2]
[368678093,1751292649125,-1233.39,0.0001906,2]
[368678094,1751292649134,-460.13,0.0001906,2]
[368678095,1751292649144,-460.0,0.0001906,2]
[368678096,1751292649154,-478.91,0.0001906,2]
[368678097,1751292649164,-460.0,0.0001906,2]
[368678098,1751292649173,-460.0,0.0001906,2]
[368678099,1751292649182,-4803.33,0.0001906,2]
[368678100,1751292649191,-460.0,0.0001906,2]
[368678101,1751292649202,-460.0,0.0001906,2]
[368678102,1751292649212,-460.0,0.00019061,2]
[368678103,1751292649222,-460.0,0.00019061,2]
[368678104,1751292649232,-460.0,0.00019061,2]
[368678105,1751292649242,-1099.82,0.00019061,2]
[368678106,1751292649252,-460.0,0.00019061,2]
[368678107,1751292649356,-460.0,0.00019061,2]
[368678108,1751292649366,-460.0,0.00019061,2]
[368678109,1751292649376,-624.33,0.00019061,2]
[368678110,1751292649385,-460.0,0.00019061,2]
[368678111,1751292649395,-460.0,0.00019061,2]
[368678112,1751292649404,-470.3,0.00019061,2]
[368678113,1751292649413,-4816.37,0.00019061,2]
[368678114,1751292649424,-1260.89,0.00019061,2]
[368678115,1751292649434,-485.39,0.00019061,2]
[368678116,1751292649443,-460.0,0.00019061,2]
[368678117,1751292649453,-797.0,0.00019064,2]
[368678118,1751292649467,-770.17471178,0.00019065,2]
[368678119,1751292649476,-797.0,0.00019092,2]
[368678120,1751292649486,-160.0,0.00019113,2]
[368678121,1751292649495,-847.41730813,0.00019113,2]
[368678122,1751292649507,-160.0,0.00019113,2]
[368678123,1751292649517,-160.0,0.00019113,2]
[368678124,1751292649527,-837.16779106,0.00019113,2]
[368678125,1751292649536,-12569.13231816,0.00019113,2]
[368678126,1751292649545,-160.0,0.00019113,2]
[368678127,1751292649555,-230.31346914,0.00019113,2]
[368678128,1751292649564,-214.99848635,0.00019113,2]
[368678129,1751292649574,-213.84631524,0.00019113,2]
[368678130,1751292649583,-160.0,0.00019113,2]
[368678131,1751292649593,-160.0,0.00019113,2]
[368678132,1751292649603,-160.0,0.00019113,2]
[368678133,1751292649612,-160.0,0.00019113,2]
[368678134,1751292649621,-797.0,0.00019119,2]
[368678135,1751292649630,-798.67117612,0.0001912,2]
[368678136,1751292649639,-797.0,0.00019146,2]
[368678137,1751292649648,-460.0,0.0001916,2]
[368678138,1751292649657,-460.0,0.0001916,2]
[368678139,1751292649666,-460.0,0.0001916,2]
[368678140,1751292649676,-460.0,0.0001916,2]
[368678141,1751292649685,-246.02,0.0001916,2]
[368678142,1751292649695,-460.0,0.0001916,2]
[368678143,1751292649704,-460.0,0.0001916,2]
[368678144,1751292649714,-460.0,0.0001916,2]
[368678145,1751292649723,-460.0,0.0001916,2]
[368678146,1751292649732,-460.0,0.0001916,2]
[368678147,1751292649741,-460.0,0.0001916,2]
[368678148,1751292649751,-508.48,0.0001916,2]
[368678149,1751292649760,-460.0,0.0001916,2]
[368678150,1751292649769,-460.0,0.0001916,2]
[368678151,1751292649779,-460.0,0.0001916,2]
[368678152,1751292649788,-574.1,0.0001916,2]
[368678153,1751292649797,-519.96,0.0001916,2]
[368678154,1751292649807,-460.0,0.0001916,2]
[368678155,1751292649816,-460.0,0.0001916,2]
[368678156,1751292649825,-460.0,0.0001916,2]
[368678157,1751292649834,-460.0,0.0001916,2]
[368678158,1751292649843,-774.04,0.0001916,2]
[368678159,1751292649853,-527.72,0.0001916,2]
[368678160,1751292649862,-460.0,0.0001916,2]
[368678161,1751292649871,-460.0,0.0001916,2]
[368678162,1751292649881,-527.38,0.0001916,2]
[368678163,1751292649890,-460.0,0.0001916,2]
[368678164,1751292649900,-460.0,0.0001916,2]
[368678165,1751292649909,-460.0,0.0001916,2]
[368678166,1751292649918,-460.0,0.0001916,2]
[368678167,1751292649927,-500.0,0.00019164,2]
[368678168,1751292649937,-797.0,0.00019174,2]
[368678169,1751292649947,-828.22200964,0.00019175,2]
[368678170,1751292649956,-198.87859106,0.00019178,2]
[368678171,1751292649966,-151.0,0.00019178,2]
[368678172,1751292649975,-518.19692437,0.00019178,7]
[368678173,1751292649984,-500.0,0.00019178,2]
[368678174,1751292649994,-234.47094767,0.00019178,2]
[368678175,1751292650003,-534.094577,0.00019178,2]
[368678176,1751292650013,-797.0,0.00019201,2]
[368678177,1751292650022,-151.25262251,0.00019205,2]
[368678178,1751292650032,-797.0,0.00019229,2]
[368678179,1751292650041,-858.86622399,0.0001923,2]
[368678180,1751292650050,-797.0,0.00019256,2]
[368678181,1751292650059,-408336.18452,0.00019259,2]
[368678182,1751292650068,-597.92,0.0001926,2]
[368678183,1751292650078,-460.0,0.0001926,2]
[368678184,1751292650088,-460.0,0.0001926,2]
[368678185,1751292650098,-460.0,0.0001926,2]
[368678186,1751292650108,-460.0,0.0001926,2]
[368678187,1751292650117,-1125.71,0.0001926,2]
[368678188,1751292650126,-460.0,0.0001926,2]
[368678189,1751292650136,-819.49,0.0001926,2]
[368678190,1751292650145,-711.35,0.0001926,2]
[368678191,1751292650155,-460.0,0.0001926,2]
[368678192,1751292650164,-1987.96,0.0001926,2]
[368678193,1751292650174,-460.0,0.0001926,2]
[368678194,1751292650183,-460.0,0.0001926,2]
[368678195,1751292650193,-460.0,0.00019261,2]
[368678196,1751292650202,-829.15,0.00019261,2]
[368678197,1751292650211,-460.0,0.00019261,2]
[368678198,1751292650221,-460.0,0.00019261,2]
[368678199,1751292650230,-460.0,0.00019261,2]
[368678200,1751292650239,-460.0,0.00019261,2]
[368678201,1751292650248,-460.0,0.00019261,2]
[368678202,1751292650257,-460.0,0.00019261,2]
[368678203,1751292650267,-460.0,0.00019261,2]
[368678204,1751292650276,-460.0,0.00019261,2]
[368678205,1751292650285,-460.0,0.00019261,2]
[368678206,1751292650294,-460.0,0.00019261,2]
[368678207,1751292650303,-460.0,0.00019261,2]
[368678208,1751292650313,-460.0,0.00019261,2]
[368678209,1751292650322,-797.0,0.00019283,2]
[368678210,1751292650332,-890.64427428,0.00019285,2]
[368678211,1751292650342,-151.0,0.000193,2]
[368678212,1751292650352,-500.0,0.00019304,2]
[368678213,1751292650362,-518.96,0.00019304,2]
[368678214,1751292650372,-500.0,0.00019305,2]
[368678215,1751292650381,-460.0,0.00019305,2]
[368678216,1751292650390,-460.0,0.00019305,2]
[368678217,1751292650400,-460.0,0.00019305,2]
[368678218,1751292650409,-518.96,0.00019305,2]
[368678219,1751292650418,-447.8459424,0.00019306,2]
[368678220,1751292650430,-500.0,0.00019306,2]
[368678221,1751292650440,-518.96,0.00019306,2]
[368678222,1751292650449,-797.0,0.00019311,2]
[368678223,1751292650458,-460.0,0.00019332,2]
[368678224,1751292650468,-500.0,0.00019332,2]
[368678225,1751292650478,-460.0,0.00019333,2]
[368678226,1751292650487,-460.0,0.00019333,2]
[368678227,1751292650497,-460.0,0.00019333,2]
[368678228,1751292650507,-460.0,0.00019333,2]
[368678229,1751292650516,-460.0,0.00019333,2]
[368678230,1751292650526,-3148.61,0.00019333,2]
[368678231,1751292650536,-460.0,0.00019333,2]
[368678232,1751292650545,-460.0,0.00019333,2]
[368678233,1751292650555,-833.89,0.00019333,2]
[368678234,1751292650565,-460.0,0.00019333,2]
[368678235,1751292650575,-267.308168,0.00019333,2]
[368678236,1751292650584,-3121.8,0.00019333,2]
[368678237,1751292650593,-460.0,0.00019333,2]
[368678238,1751292650603,-151.0,0.00019333,2]
[368678239,1751292650612,-3574.5,0.00019333,2]
[368678240,1751292650622,-735.98,0.00019333,2]
[368678241,1751292650631,-151.0,0.00019333,2]
[368678242,1751292650640,-151.0,0.00019333,2]
[368678243,1751292650650,-489.67,0.00019333,2]
[368678244,1751292650660,-499.26,0.00019333,2]
[368678245,1751292650669,-151.0,0.00019333,2]
[368678246,1751292650679,-460.0,0.00019333,2]
[368678247,1751292650688,-460.0,0.00019333,2]
[368678248,1751292650697,-3308.14,0.00019333,2]
[368678249,1751292650707,-460.0,0.00019333,2]
[368678250,1751292650716,-460.0,0.00019333,2]
[368678251,1751292650725,-4178.41,0.00019333,2]
[368678252,1751292650735,-460.0,0.00019333,2]
[368678253,1751292650745,-460.0,0.00019333,2]
[368678254,1751292650754,-536.59,0.00019333,2]